[Event "20th Rochefort Chess Festival - Masters"]
[Site "Rochefort, France"]
[Date "2022.02.15"]
[Round "5.5"]
[White "Larkin, Vladyslav"]
[Black "Devallee, Jeremie"]
[Result "1-0"]
[TimeControl "1h30 + [30'']"]
[WhiteElo "2399"]
[BlackElo "2206"]

1. e4 {[%clk 01:17:12]} {[%emt 00:13:47]} c5 {[%clk 01:30:40]} {[%emt
00:00:16]} 2. Nf3 {[%clk 01:17:15]} {[%emt 00:00:32]} d6 {[%clk 01:29:56]}
{[%emt 00:01:14]} 3. Bb5+ {[%clk 01:17:24]} {[%emt 00:00:21]} Nc6 {[%clk
01:30:21]} {[%emt 00:00:05]} 4. O-O {[%clk 01:17:40]} {[%emt 00:00:14]} Bd7
{[%clk 01:30:43]} {[%emt 00:00:07]} 5. Re1 {[%clk 01:18:05]} {[%emt 00:00:05]}
a6 {[%clk 01:31:06]} {[%emt 00:00:08]} 6. Bf1 {[%clk 01:18:28]} {[%emt
00:00:07]} Bg4 {[%clk 01:31:30]} {[%emt 00:00:05]} 7. c3 {[%clk 01:17:57]}
{[%emt 00:01:00]} Nf6 {[%clk 01:30:57]} {[%emt 00:01:03]} 8. d4 {[%clk
01:18:17]} {[%emt 00:00:11]} cxd4 {[%clk 01:21:22]} {[%emt 00:10:05]} 9. cxd4
{[%clk 01:18:42]} {[%emt 00:00:05]} d5 {[%clk 01:21:47]} {[%emt 00:00:05]} 10.
e5 {[%clk 01:16:17]} {[%emt 00:02:55]} Ng8 {[%clk 01:06:17]} {[%emt 00:16:00]}
11. Be3 {[%clk 00:59:42]} {[%emt 00:17:05]} e6 {[%clk 01:06:10]} {[%emt
00:00:36]} 12. h3 {[%clk 01:00:07]} {[%emt 00:00:06]} Bh5 {[%clk 01:06:11]}
{[%emt 00:00:29]} 13. a3 {[%clk 00:57:21]} {[%emt 00:03:16]} Be7 {[%clk
00:36:50]} {[%emt 00:29:50]} 14. Nc3 {[%clk 00:53:42]} {[%emt 00:04:09]} g5
{[%clk 00:32:34]} {[%emt 00:04:45]} 15. Rc1 {[%clk 00:53:23]} {[%emt 00:00:49]}
Bg6 {[%clk 00:31:19]} {[%emt 00:01:44]} 16. b4 {[%clk 00:48:50]} {[%emt
00:05:04]} h5 {[%clk 00:22:21]} {[%emt 00:09:28]} 17. Qd2 {[%clk 00:48:14]}
{[%emt 00:01:06]} g4 {[%clk 00:22:25]} {[%emt 00:00:25]} 18. hxg4 {[%clk
00:48:22]} {[%emt 00:00:22]} hxg4 {[%clk 00:22:41]} {[%emt 00:00:15]} 19. Nh2
{[%clk 00:48:50]} {[%emt 00:00:01]} Bf8 {[%clk 00:11:28]} {[%emt 00:11:43]} 20.
g3 {[%clk 00:43:59]} {[%emt 00:05:21]} Nh6 {[%clk 00:09:59]} {[%emt 00:01:59]}
21. Bg5 {[%clk 00:43:33]} {[%emt 00:00:56]} Qb6 {[%clk 00:10:22]} {[%emt
00:00:07]} 22. Red1 {[%clk 00:43:33]} {[%emt 00:00:30]} Nf5 {[%clk 00:10:15]}
{[%emt 00:00:37]} 23. Nxg4 {[%clk 00:43:03]} {[%emt 00:01:00]} Be7 {[%clk
00:09:26]} {[%emt 00:01:20]} 24. Bxe7 {[%clk 00:42:34]} {[%emt 00:00:59]} Kxe7
{[%clk 00:06:14]} {[%emt 00:03:42]} 25. Na4 {[%clk 00:37:02]} {[%emt 00:06:02]}
Qd8 {[%clk 00:03:30]} {[%emt 00:03:12]} 26. Qf4 {[%clk 00:35:24]} {[%emt
00:02:09]} Qg8 {[%clk 00:02:25]} {[%emt 00:01:36]} 27. Nf6 {[%clk 00:25:59]}
{[%emt 00:09:55]} Qg7 {[%clk 00:02:10]} {[%emt 00:00:45]} 28. Qg5 {[%clk
00:25:49]} {[%emt 00:00:40]} Kf8 {[%clk 00:02:38]} {[%emt 00:00:02]} 29. Nb6
{[%clk 00:24:42]} {[%emt 00:01:37]} Rd8 {[%clk 00:01:40]} {[%emt 00:01:28]} 30.
b5 {[%clk 00:24:13]} {[%emt 00:01:00]} Nfxd4 {[%clk 00:01:40]} {[%emt
00:00:30]} 31. Rxd4 {[%clk 00:23:43]} {[%emt 00:01:00]} Nxd4 {[%clk 00:02:08]}
{[%emt 00:00:02]} 32. Nbd7+ {[%clk 00:24:09]} {[%emt 00:00:05]} 1-0

[Event "20th Rochefort Chess Festival - Masters"]
[Site "Rochefort, France"]
[Date "2022.02.15"]
[Round "5.3"]
[White "Demuth, Adrien"]
[Black "Martin Duque, Jesus"]
[Result "1-0"]
[TimeControl "1h30 + [30'']"]
[WhiteElo "2489"]
[BlackElo "2411"]

1. e4 {[%clk 01:30:57]} {[%emt 00:00:02]} c5 {[%clk 01:29:08]} {[%emt
00:01:34]} 2. Nf3 {[%clk 01:31:19]} {[%emt 00:00:25]} Nc6 {[%clk 01:29:14]}
{[%emt 00:00:25]} 3. Bb5 {[%clk 01:31:02]} {[%emt 00:00:47]} e6 {[%clk
01:28:34]} {[%emt 00:01:10]} 4. O-O {[%clk 01:31:08]} {[%emt 00:00:24]} Nge7
{[%clk 01:28:38]} {[%emt 00:00:25]} 5. d4 {[%clk 01:30:37]} {[%emt 00:01:02]}
cxd4 {[%clk 01:26:34]} {[%emt 00:02:34]} 6. Nxd4 {[%clk 01:31:01]} {[%emt
00:00:06]} Ng6 {[%clk 01:19:06]} {[%emt 00:07:58]} 7. c4 {[%clk 01:20:13]}
{[%emt 00:11:19]} Qc7 {[%clk 01:17:39]} {[%emt 00:01:57]} 8. Nc3 {[%clk
01:18:58]} {[%emt 00:01:45]} b6 {[%clk 01:17:32]} {[%emt 00:00:37]} 9. Be3
{[%clk 01:04:13]} {[%emt 00:15:15]} Bb7 {[%clk 01:16:06]} {[%emt 00:01:55]} 10.
Rc1 {[%clk 01:04:12]} {[%emt 00:00:30]} Bc5 {[%clk 01:10:03]} {[%emt 00:06:32]}
11. Ba4 {[%clk 00:57:38]} {[%emt 00:07:05]} O-O {[%clk 00:56:44]} {[%emt
00:13:48]} 12. Ndb5 {[%clk 00:55:29]} {[%emt 00:02:40]} Qb8 {[%clk 00:52:56]}
{[%emt 00:04:18]} 13. Re1 {[%clk 00:32:08]} {[%emt 00:23:51]} Nge5 {[%clk
00:50:34]} {[%emt 00:02:52]} 14. Bb3 {[%clk 00:26:32]} {[%emt 00:06:06]} Nb4
{[%clk 00:47:07]} {[%emt 00:03:57]} 15. Bxc5 {[%clk 00:16:05]} {[%emt
00:10:58]} bxc5 {[%clk 00:45:24]} {[%emt 00:02:13]} 16. Re3 {[%clk 00:16:31]}
{[%emt 00:00:04]} f5 {[%clk 00:40:28]} {[%emt 00:05:26]} 17. exf5 {[%clk
00:15:38]} {[%emt 00:01:23]} Rxf5 {[%clk 00:38:48]} {[%emt 00:02:09]} 18. Nd6
{[%clk 00:14:54]} {[%emt 00:01:15]} Ng4 {[%clk 00:37:35]} {[%emt 00:01:43]} 19.
Rg3 {[%clk 00:08:30]} {[%emt 00:06:54]} Nxf2 {[%clk 00:37:30]} {[%emt
00:00:35]} 20. Qd2 {[%clk 00:07:52]} {[%emt 00:01:08]} Rf6 {[%clk 00:35:13]}
{[%emt 00:02:46]} 21. Rf1 {[%clk 00:07:12]} {[%emt 00:01:10]} Qf8 {[%clk
00:33:32]} {[%emt 00:02:11]} 22. Nxb7 {[%clk 00:04:47]} {[%emt 00:02:55]} Nh3+
{[%clk 00:33:52]} {[%emt 00:00:10]} 23. gxh3 {[%clk 00:05:16]} {[%emt
00:00:02]} Rxf1+ {[%clk 00:34:14]} {[%emt 00:00:08]} 24. Kg2 {[%clk 00:05:44]}
{[%emt 00:00:01]} Qf6 {[%clk 00:26:58]} {[%emt 00:07:46]} 25. Ne4 {[%clk
00:03:57]} {[%emt 00:02:17]} Qe5 {[%clk 00:27:27]} {[%emt 00:00:01]} 26. Nf2
{[%clk 00:01:31]} {[%emt 00:02:56]} Rxf2+ {[%clk 00:26:46]} {[%emt 00:01:11]}
27. Kxf2 {[%clk 00:01:37]} {[%emt 00:00:24]} Rb8 {[%clk 00:23:44]} {[%emt
00:03:32]} 28. Nd6 {[%clk 00:01:28]} {[%emt 00:00:38]} Nxa2 {[%clk 00:22:37]}
{[%emt 00:01:37]} 29. Kg2 {[%clk 00:01:03]} {[%emt 00:00:55]} Nc1 {[%clk
00:22:16]} {[%emt 00:00:51]} 30. Qxc1 {[%clk 00:00:52]} {[%emt 00:00:41]} Qxd6
{[%clk 00:22:19]} {[%emt 00:00:27]} 31. Bd1 {[%clk 00:00:38]} {[%emt 00:00:44]}
Qd4 {[%clk 00:21:56]} {[%emt 00:00:53]} 32. b3 {[%clk 00:00:55]} {[%emt
00:00:14]} Rf8 {[%clk 00:22:00]} {[%emt 00:00:25]} 33. Rf3 {[%clk 00:01:07]}
{[%emt 00:00:18]} d5 {[%clk 00:20:15]} {[%emt 00:02:15]} 34. Qe3 {[%clk
00:00:34]} {[%emt 00:01:03]} Qxe3 {[%clk 00:15:55]} {[%emt 00:04:50]} 35. Rxe3
{[%clk 00:01:03]} {[%emt 00:00:02]} Kf7 {[%clk 00:14:14]} {[%emt 00:02:12]} 36.
cxd5 {[%clk 00:00:45]} {[%emt 00:00:48]} exd5 {[%clk 00:14:41]} {[%emt
00:00:02]} 37. Re5 {[%clk 00:00:46]} {[%emt 00:00:29]} c4 {[%clk 00:14:08]}
{[%emt 00:01:04]} 38. Rxd5 {[%clk 00:00:42]} {[%emt 00:00:33]} cxb3 {[%clk
00:14:25]} {[%emt 00:00:12]} 39. Bxb3 {[%clk 00:01:11]} {[%emt 00:00:02]} Kf6
{[%clk 00:12:27]} {[%emt 00:02:27]} 40. Rd6+ {[%clk 00:01:37]} {[%emt
00:00:05]} Kg5 {[%clk 00:12:03]} {[%emt 00:00:53]} 41. Rd7 {[%clk 00:01:56]}
{[%emt 00:00:13]} Kh6 {[%clk 00:12:13]} {[%emt 00:00:19]} 42. Rxa7 {[%clk
00:02:21]} {[%emt 00:00:06]} Rb8 {[%clk 00:12:19]} {[%emt 00:00:23]} 43. Ra6+
{[%clk 00:02:34]} {[%emt 00:00:17]} g6 {[%clk 00:12:44]} {[%emt 00:00:05]} 44.
Bd5 {[%clk 00:03:01]} {[%emt 00:00:03]} Rd8 {[%clk 00:12:50]} {[%emt 00:00:25]}
45. Bf3 {[%clk 00:03:20]} {[%emt 00:00:11]} Rd4 {[%clk 00:10:11]} {[%emt
00:03:09]} 46. Kg3 {[%clk 00:03:44]} {[%emt 00:00:06]} Kg7 {[%clk 00:10:08]}
{[%emt 00:00:33]} 47. Ra7+ {[%clk 00:03:50]} {[%emt 00:00:24]} Kh6 {[%clk
00:10:23]} {[%emt 00:00:15]} 48. Re7 {[%clk 00:02:13]} {[%emt 00:02:07]} Rb4
{[%clk 00:10:24]} {[%emt 00:00:30]} 49. Bd5 {[%clk 00:02:13]} {[%emt 00:00:30]}
Rb8 {[%clk 00:10:30]} {[%emt 00:00:24]} 50. h4 {[%clk 00:02:17]} {[%emt
00:00:25]} Rd8 {[%clk 00:10:57]} {[%emt 00:00:03]} 51. Be4 {[%clk 00:02:11]}
{[%emt 00:00:36]} Rb8 {[%clk 00:10:29]} {[%emt 00:00:57]} 52. Kg4 {[%clk
00:02:20]} {[%emt 00:00:22]} Rb5 {[%clk 00:10:40]} {[%emt 00:00:18]} 53. Rd7
{[%clk 00:02:26]} {[%emt 00:00:25]} Ra5 {[%clk 00:10:56]} {[%emt 00:00:13]} 54.
Rb7 {[%clk 00:01:17]} {[%emt 00:01:39]} Ra4 {[%clk 00:10:49]} {[%emt 00:00:36]}
55. Re7 {[%clk 00:01:39]} {[%emt 00:00:09]} Ra5 {[%clk 00:11:09]} {[%emt
00:00:10]} 56. Rd7 {[%clk 00:01:19]} {[%emt 00:00:49]} Ra4 {[%clk 00:11:32]}
{[%emt 00:00:07]} 57. Kf4 {[%clk 00:01:40]} {[%emt 00:00:09]} Ra2 {[%clk
00:11:39]} {[%emt 00:00:20]} 58. h3 {[%clk 00:01:23]} {[%emt 00:00:50]} Ra3
{[%clk 00:11:51]} {[%emt 00:00:17]} 59. Kg4 {[%clk 00:01:09]} {[%emt 00:00:45]}
Ra4 {[%clk 00:12:18]} {[%emt 00:00:04]} 60. Re7 {[%clk 00:01:31]} {[%emt
00:00:09]} Ra5 {[%clk 00:12:43]} {[%emt 00:00:04]} 61. Kf4 {[%clk 00:01:36]}
{[%emt 00:00:25]} Ra3 {[%clk 00:13:05]} {[%emt 00:00:08]} 62. Bf3 {[%clk
00:01:15]} {[%emt 00:00:51]} Ra4+ {[%clk 00:13:10]} {[%emt 00:00:25]} 63. Kg3
{[%clk 00:01:39]} {[%emt 00:00:06]} Ra6 {[%clk 00:11:51]} {[%emt 00:01:49]} 64.
h5 {[%clk 00:00:57]} {[%emt 00:01:12]} Rb6 {[%clk 00:12:15]} {[%emt 00:00:06]}
65. Be4 {[%clk 00:00:35]} {[%emt 00:00:52]} Ra6 {[%clk 00:11:19]} {[%emt
00:01:25]} 66. Kg4 {[%clk 00:00:53]} {[%emt 00:00:13]} Rb6 {[%clk 00:11:27]}
{[%emt 00:00:22]} 67. Kg3 {[%clk 00:00:43]} {[%emt 00:00:39]} Ra6 {[%clk
00:11:49]} {[%emt 00:00:08]} 68. Kg4 {[%clk 00:01:11]} {[%emt 00:00:03]} Rb6
{[%clk 00:12:15]} {[%emt 00:00:04]} 69. hxg6 {[%clk 00:01:06]} {[%emt
00:00:35]} hxg6 {[%clk 00:12:38]} {[%emt 00:00:07]} 70. h4 {[%clk 00:01:25]}
{[%emt 00:00:11]} Rf6 {[%clk 00:12:22]} {[%emt 00:00:45]} 71. Kg3 {[%clk
00:01:07]} {[%emt 00:00:49]} Ra6 {[%clk 00:12:25]} {[%emt 00:00:26]} 72. Kf4
{[%clk 00:01:34]} {[%emt 00:00:04]} Rf6+ {[%clk 00:11:46]} {[%emt 00:01:09]} 73.
Kg4 {[%clk 00:01:46]} {[%emt 00:00:19]} Rf1 {[%clk 00:11:03]} {[%emt 00:01:12]}
74. Bd5 {[%clk 00:00:55]} {[%emt 00:01:21]} Rg1+ {[%clk 00:07:07]} {[%emt
00:04:26]} 75. Kf4 {[%clk 00:01:16]} {[%emt 00:00:09]} Rf1+ {[%clk 00:06:10]}
{[%emt 00:01:27]} 76. Kg4 {[%clk 00:01:35]} {[%emt 00:00:11]} Rg1+ {[%clk
00:06:36]} {[%emt 00:00:04]} 77. Kh3 {[%clk 00:01:57]} {[%emt 00:00:08]} Rd1
{[%clk 00:06:44]} {[%emt 00:00:21]} 78. Be4 {[%clk 00:00:41]} {[%emt 00:01:47]}
Rd6 {[%clk 00:07:03]} {[%emt 00:00:10]} 79. Kg3 {[%clk 00:00:41]} {[%emt
00:00:31]} Ra6 {[%clk 00:07:11]} {[%emt 00:00:21]} 80. Kf4 {[%clk 00:00:38]}
{[%emt 00:00:35]} Rf6+ {[%clk 00:07:04]} {[%emt 00:08:54]} 81. Kg4 {[%clk
00:01:56]} {[%emt 00:01:12]} Rf1 {[%clk 00:06:56]} {[%emt 00:00:37]} 82. Re6
{[%clk 00:02:01]} {[%emt 00:00:26]} Rg1+ {[%clk 00:07:21]} {[%emt 00:00:05]} 83.
Kh3 {[%clk 00:02:01]} {[%emt 00:00:30]} Kg7 {[%clk 00:07:30]} {[%emt 00:00:21]}
84. Ra6 {[%clk 00:02:00]} {[%emt 00:00:31]} Kh6 {[%clk 00:07:35]} {[%emt
00:00:21]} 85. Rb6 {[%clk 00:01:49]} {[%emt 00:00:46]} Kg7 {[%clk 00:07:52]}
{[%emt 00:00:12]} 86. Rc6 {[%clk 00:02:08]} {[%emt 00:00:12]} Kh6 {[%clk
00:08:17]} {[%emt 00:00:05]} 87. Ra6 {[%clk 00:02:20]} {[%emt 00:00:18]} Kg7
{[%clk 00:08:43]} {[%emt 00:00:03]} 88. Ra7+ {[%clk 00:02:32]} {[%emt
00:00:18]} Kh6 {[%clk 00:09:11]} {[%emt 00:00:02]} 89. Bd5 {[%clk 00:02:52]}
{[%emt 00:00:11]} Rd1 {[%clk 00:08:49]} {[%emt 00:00:50]} 90. Bg8 {[%clk
00:02:39]} {[%emt 00:00:44]} Rd3+ {[%clk 00:09:16]} {[%emt 00:00:03]} 91. Kg4
{[%clk 00:02:55]} {[%emt 00:00:14]} Rd4+ {[%clk 00:09:38]} {[%emt 00:00:09]} 92.
Kg3 {[%clk 00:03:20]} {[%emt 00:00:05]} Rd3+ {[%clk 00:09:59]} {[%emt
00:00:09]} 93. Kg2 {[%clk 00:03:34]} {[%emt 00:00:16]} Kh5 {[%clk 00:09:11]}
{[%emt 00:01:18]} 94. Rh7+ {[%clk 00:03:47]} {[%emt 00:00:17]} Kg4 {[%clk
00:09:39]} {[%emt 00:00:02]} 95. Be6+ {[%clk 00:04:09]} {[%emt 00:00:08]} Kf4
{[%clk 00:10:03]} {[%emt 00:00:06]} 96. Rf7+ {[%clk 00:04:33]} {[%emt
00:00:06]} Ke5 {[%clk 00:10:16]} {[%emt 00:00:17]} 97. Bg4 {[%clk 00:04:43]}
{[%emt 00:00:20]} Ra3 {[%clk 00:09:17]} {[%emt 00:01:28]} 98. Bf3 {[%clk
00:04:55]} {[%emt 00:00:18]} Ke6 {[%clk 00:09:34]} {[%emt 00:00:12]} 99. Rf4
{[%clk 00:05:15]} {[%emt 00:00:11]} Ke5 {[%clk 00:08:30]} {[%emt 00:01:35]} 100.
Rf8 {[%clk 00:05:41]} {[%emt 00:00:03]} Ra6 {[%clk 00:08:36]} {[%emt 00:00:23]}
101. Kg3 {[%clk 00:04:55]} {[%emt 00:01:17]} Rf6 {[%clk 00:08:59]} {[%emt
00:00:07]} 102. Rg8 {[%clk 00:05:16]} {[%emt 00:00:09]} Kf5 {[%clk 00:08:47]}
{[%emt 00:00:41]} 103. Bg4+ {[%clk 00:05:34]} {[%emt 00:00:13]} Ke5 {[%clk
00:09:16]} {[%emt 00:00:01]} 104. Re8+ {[%clk 00:04:29]} {[%emt 00:01:36]} Kd6
{[%clk 00:09:36]} {[%emt 00:00:08]} 105. Bc8 {[%clk 00:04:30]} {[%emt
00:00:30]} Rf1 {[%clk 00:09:00]} {[%emt 00:01:07]} 106. Kg4 {[%clk 00:04:51]}
{[%emt 00:00:09]} Rg1+ {[%clk 00:08:59]} {[%emt 00:00:30]} 107. Kf4 {[%clk
00:05:17]} {[%emt 00:00:04]} Kc7 {[%clk 00:08:52]} {[%emt 00:00:36]} 108. Bg4
{[%clk 00:05:42]} {[%emt 00:00:05]} Kd6 {[%clk 00:08:30]} {[%emt 00:00:53]} 109.
Re6+ {[%clk 00:06:02]} {[%emt 00:00:09]} 1-0

[Event "20th Rochefort Chess Festival - Masters"]
[Site "Rochefort, France"]
[Date "2022.02.15"]
[Round "5.4"]
[White "Duboue, Peio"]
[Black "Laurent-Paoli, Pierre"]
[Result "0-1"]
[TimeControl "1h30 + [30'']"]
[WhiteElo "2412"]
[BlackElo "2483"]

1. e4 {[%clk 01:30:57]} c5 {[%clk 01:30:16]} {[%emt 00:00:45]} 2. c3 {[%clk
01:31:23]} {[%emt 00:00:04]} Nf6 {[%clk 01:30:38]} {[%emt 00:00:08]} 3. e5
{[%clk 01:31:51]} {[%emt 00:00:02]} Nd5 {[%clk 01:31:03]} {[%emt 00:00:05]} 4.
d4 {[%clk 01:32:20]} cxd4 {[%clk 01:31:21]} {[%emt 00:00:13]} 5. Nf3 {[%clk
01:32:47]} {[%emt 00:00:03]} Nc6 {[%clk 01:31:40]} {[%emt 00:00:11]} 6. cxd4
{[%clk 01:33:14]} {[%emt 00:00:03]} d6 {[%clk 01:32:01]} {[%emt 00:00:10]} 7.
Bc4 {[%clk 01:33:41]} {[%emt 00:00:03]} dxe5 {[%clk 01:32:25]} {[%emt
00:00:06]} 8. Nxe5 {[%clk 01:34:07]} {[%emt 00:00:03]} e6 {[%clk 01:32:45]}
{[%emt 00:00:10]} 9. O-O {[%clk 01:34:18]} {[%emt 00:00:19]} Be7 {[%clk
01:33:03]} {[%emt 00:00:12]} 10. Qf3 {[%clk 01:34:42]} {[%emt 00:00:05]} O-O
{[%clk 01:28:41]} {[%emt 00:04:52]} 11. Rd1 {[%clk 01:35:04]} {[%emt 00:00:09]}
Bf6 {[%clk 01:06:32]} {[%emt 00:22:39]} 12. Nxc6 {[%clk 01:34:59]} {[%emt
00:00:36]} bxc6 {[%clk 01:06:58]} {[%emt 00:00:03]} 13. Nc3 {[%clk 01:35:25]}
{[%emt 00:00:05]} a5 {[%clk 01:04:49]} {[%emt 00:02:40]} 14. Ne4 {[%clk
01:35:42]} {[%emt 00:00:12]} Be7 {[%clk 00:52:17]} {[%emt 00:13:01]} 15. b3
{[%clk 01:35:25]} {[%emt 00:00:48]} Ba6 {[%clk 00:45:39]} {[%emt 00:07:08]} 16.
Nc5 {[%clk 01:35:19]} {[%emt 00:00:36]} Bxc5 {[%clk 00:37:29]} {[%emt
00:08:40]} 17. dxc5 {[%clk 01:33:31]} {[%emt 00:02:18]} Qf6 {[%clk 00:37:31]}
{[%emt 00:00:28]} 18. Qxf6 {[%clk 01:30:03]} {[%emt 00:03:58]} Nxf6 {[%clk
00:37:49]} {[%emt 00:00:13]} 19. Bf4 {[%clk 01:16:52]} {[%emt 00:13:40]} Nd5
{[%clk 00:34:46]} {[%emt 00:03:32]} 20. Bd6 {[%clk 01:17:18]} {[%emt 00:00:05]}
Rfd8 {[%clk 00:34:26]} {[%emt 00:00:50]} 21. Rac1 {[%clk 01:08:52]} {[%emt
00:08:56]} a4 {[%clk 00:30:06]} {[%emt 00:04:51]} 22. bxa4 {[%clk 01:06:41]}
{[%emt 00:02:41]} Bxc4 {[%clk 00:30:15]} {[%emt 00:00:21]} 23. Rxc4 {[%clk
01:07:06]} {[%emt 00:00:05]} Rd7 {[%clk 00:29:42]} {[%emt 00:01:03]} 24. Rb1
{[%clk 01:05:16]} {[%emt 00:02:20]} f6 {[%clk 00:25:08]} {[%emt 00:05:04]} 25.
g3 {[%clk 01:04:47]} {[%emt 00:00:59]} e5 {[%clk 00:18:04]} {[%emt 00:07:35]}
26. f4 {[%clk 00:56:20]} {[%emt 00:08:56]} exf4 {[%clk 00:17:56]} {[%emt
00:00:39]} 27. gxf4 {[%clk 00:56:45]} {[%emt 00:00:04]} Rda7 {[%clk 00:16:45]}
{[%emt 00:01:41]} 28. f5 {[%clk 00:42:35]} {[%emt 00:14:40]} g6 {[%clk
00:16:01]} {[%emt 00:01:14]} 29. fxg6 {[%clk 00:40:42]} {[%emt 00:02:23]} hxg6
{[%clk 00:16:27]} {[%emt 00:00:04]} 30. Rb8+ {[%clk 00:19:47]} {[%emt
00:21:25]} Rxb8 {[%clk 00:14:23]} {[%emt 00:02:34]} 31. Bxb8 {[%clk 00:20:13]}
{[%emt 00:00:04]} Rb7 {[%clk 00:14:11]} {[%emt 00:00:42]} 32. Bf4 {[%clk
00:20:05]} {[%emt 00:00:38]} Rb1+ {[%clk 00:11:00]} {[%emt 00:03:41]} 33. Bc1
{[%clk 00:19:23]} {[%emt 00:01:12]} Ne3 {[%clk 00:10:58]} {[%emt 00:00:32]} 34.
Rc3 {[%clk 00:19:48]} {[%emt 00:00:05]} Nd5 {[%clk 00:11:26]} {[%emt 00:00:02]}
35. Rc4 {[%clk 00:20:15]} {[%emt 00:00:03]} Nb4 {[%clk 00:08:42]} {[%emt
00:03:13]} 36. Kg2 {[%clk 00:19:01]} {[%emt 00:01:44]} Nxa2 {[%clk 00:07:42]}
{[%emt 00:01:31]} 37. Be3 {[%clk 00:18:04]} {[%emt 00:01:26]} Rb2+ {[%clk
00:06:08]} {[%emt 00:02:04]} 38. Kf3 {[%clk 00:16:24]} {[%emt 00:02:10]} Nb4
{[%clk 00:06:25]} {[%emt 00:00:14]} 39. Bd4 {[%clk 00:15:33]} {[%emt 00:01:21]}
Rb3+ {[%clk 00:06:06]} {[%emt 00:00:50]} 40. Rc3 {[%clk 00:15:49]} {[%emt
00:00:13]} Rb1 {[%clk 00:06:17]} {[%emt 00:00:18]} 41. Kg3 {[%clk 00:13:32]}
{[%emt 00:02:47]} Kf7 {[%clk 00:05:05]} {[%emt 00:01:43]} 42. h4 {[%clk
00:12:01]} {[%emt 00:02:00]} Rd1 {[%clk 00:04:30]} {[%emt 00:01:04]} 43. Rc4
{[%clk 00:07:36]} {[%emt 00:04:54]} Nd5 {[%clk 00:04:53]} {[%emt 00:00:08]} 44.
Kf2 {[%clk 00:06:21]} {[%emt 00:01:45]} Rd3 {[%clk 00:04:49]} {[%emt 00:00:34]}
45. Ke1 {[%clk 00:05:55]} {[%emt 00:00:56]} Ke6 {[%clk 00:04:55]} {[%emt
00:00:25]} 46. Bb2 {[%clk 00:06:19]} {[%emt 00:00:05]} Ne3 {[%clk 00:02:25]}
{[%emt 00:03:01]} 47. Rc3 {[%clk 00:02:27]} {[%emt 00:04:22]} Ng2+ {[%clk
00:02:13]} {[%emt 00:00:42]} 48. Kf1 {[%clk 00:02:54]} {[%emt 00:00:03]} Rd2
{[%clk 00:01:39]} {[%emt 00:01:04]} 49. Bc1 {[%clk 00:03:08]} {[%emt 00:00:15]}
Ra2 {[%clk 00:02:02]} {[%emt 00:00:07]} 50. a5 {[%clk 00:01:18]} {[%emt
00:02:21]} Nxh4 {[%clk 00:01:46]} {[%emt 00:00:46]} 51. Ba3 {[%clk 00:01:02]}
{[%emt 00:00:46]} Nf5 {[%clk 00:01:26]} {[%emt 00:00:50]} 52. a6 {[%clk
00:01:19]} {[%emt 00:00:12]} Rh2 {[%clk 00:01:28]} {[%emt 00:00:28]} 53. Bc1
{[%clk 00:01:00]} {[%emt 00:00:49]} Rh8 {[%clk 00:01:15]} {[%emt 00:00:43]} 54.
Bf4 {[%clk 00:00:51]} {[%emt 00:00:39]} Ra8 {[%clk 00:01:29]} {[%emt 00:00:16]}
55. Ra3 {[%clk 00:01:13]} {[%emt 00:00:09]} Nd4 {[%clk 00:01:40]} {[%emt
00:00:19]} 56. Bd6 {[%clk 00:00:44]} {[%emt 00:00:59]} Nb5 {[%clk 00:01:37]}
{[%emt 00:00:32]} 57. Re3+ {[%clk 00:01:02]} {[%emt 00:00:11]} Kd5 {[%clk
00:01:00]} {[%emt 00:01:08]} 58. Rf3 {[%clk 00:00:49]} {[%emt 00:00:43]} Ke6
{[%clk 00:01:14]} {[%emt 00:00:16]} 59. Re3+ {[%clk 00:01:12]} {[%emt
00:00:06]} Kd5 {[%clk 00:01:27]} {[%emt 00:00:17]} 60. Rf3 {[%clk 00:00:43]}
{[%emt 00:00:59]} f5 {[%clk 00:01:55]} {[%emt 00:00:02]} 61. Rg3 {[%clk
00:00:51]} {[%emt 00:00:22]} Rg8 {[%clk 00:01:14]} {[%emt 00:01:12]} 62. Bf4
{[%clk 00:00:43]} {[%emt 00:00:38]} Ke4 {[%clk 00:01:37]} {[%emt 00:00:07]} 63.
Bd2 {[%clk 00:00:34]} {[%emt 00:00:39]} f4 {[%clk 00:01:09]} {[%emt 00:00:58]}
64. Rg4 {[%clk 00:00:37]} {[%emt 00:00:27]} g5 {[%clk 00:01:32]} {[%emt
00:00:07]} 65. Ke2 {[%clk 00:00:36]} {[%emt 00:00:31]} Kf5 {[%clk 00:01:42]}
{[%emt 00:00:20]} 66. Rg1 {[%clk 00:00:50]} {[%emt 00:00:15]} Ra8 {[%clk
00:01:55]} {[%emt 00:00:18]} 67. Ra1 {[%clk 00:01:07]} {[%emt 00:00:13]} Nc7
{[%clk 00:01:43]} {[%emt 00:00:42]} 68. a7 {[%clk 00:01:20]} {[%emt 00:00:17]}
Nb5 {[%clk 00:02:10]} {[%emt 00:00:03]} 69. Ra6 {[%clk 00:01:44]} {[%emt
00:00:06]} Rxa7 {[%clk 00:02:34]} {[%emt 00:00:06]} 0-1